[Event "IIFL Wealth 4th Mumbai GM"]
[Site "Mumbai"]
[Date "2018.12.30"]
[Round "1"]
[White "Wahba, David George"]
[Black "Wagh Suyog"]
[Result "0-1"]
[ECO "C58"]
[WhiteElo "1295"]
[BlackElo "2240"]
[Annotator "NA"]
[PlyCount "52"]
[EventDate "2018.12.30"]
[EventType "swiss"]
[EventCountry "IND"]
[SourceTitle "playchess.com"]
[Source "ChessBase"]
[SourceQuality "1"]
[TimeControl "40/5400+30:1800+30"]

1. e4 {[%emt 0:00:00]} e5 {[%emt 0:00:19]} 2. Nf3 Nc6 3. Bc4 {[%emt 0:01:06]} Nf6 {[%emt 0:00:51]} 4. Ng5 {[%emt 0:01:24]} d5 {[%emt 0:00:07]} 5. exd5 {[%emt 0:00:12]} Na5 {[%emt 0:00:03]} 6. Bb5+ c6 7. dxc6 {[%emt 0:00:57]} bxc6 {[%emt 0:00:32]} 8. Qf3 {[%emt 0:00:25]} Bb7 {[%emt 0:01:35]} 9. Ba4 {[%emt 0:01:22]} Be7 {[%emt 0:01:33]} 10. Nc3 O-O 11. O-O {[%emt 0:04:09]} Nd5 {[%emt 0:02:07]} 12. Nge4 {[%emt 0:01:47]} f5 {[%emt 0:00:06]} 13. Ng3 {[%emt 0:00:33]} Nf4 {[%emt 0:08:23]} 14. Bb3+ {[%emt 0:03:23]} Kh8 {[%emt 0:00:16]} 15. Qd1 {[%emt 0:01:44]} c5 {[%emt 0:00:18]} 16. f3 {[%emt 0:00:26]} c4 {[%emt 0:02:33]} 17. Ba4 {[%emt 0:01:46]} e4 {[%emt 0:00:24]} 18. fxe4 {[%emt 0:01:25]} fxe4 {[%emt 0:00:12]} 19. Ngxe4 {[%emt 0:02:59]} Qd4+ {[%emt 0:00:31]} 20. Kh1 {[%emt 0:03:51]} Bxe4 {[%emt 0:00:58]} 21. Nxe4 Qxe4 22. Qf3 {[%emt 0:05:09]} Nh3 {[%emt 0:00:42]} 23. Qd1 {[%emt 0:04:38]} Rxf1+ {[%emt 0:00:16]} 24. Qxf1 {[%emt 0:02:54]} Rf8 25. Qxf8+ Bxf8 {[%emt 0:00:35]} 26. d3 {[%emt 0:02:22]} Qe1# {[%emt 0:00:06]} 0-1